bitfinex/quotes_ETHUSD_20251110
["timestamp","ask_amount","ask_price","bid_price","bid_amount"]
[1762808851990,2.81143692,3556.9,3556.2,0.2405]
[1762808852211,2.81164283,3556.7,3556.2,0.2405]
[1762808852377,3.546499,3557.2,3556.2,0.2405]
[1762808852585,2.81167904,3556.6,3556.2,0.2405]
[1762808852822,2.81135788,3557.0,3556.0,0.1148]
[1762808853134,0.77485922,3556.9,3556.0,0.1148]
[1762808853293,2.81175743,3556.5,3556.0,0.1148]
[1762808853489,3.40121396,3556.4,3556.0,0.1148]
[1762808853693,0.58935922,3556.3,3556.0,0.1148]
[1762808854014,0.58935922,3556.3,3556.0,0.3553]
[1762808854218,0.58935922,3556.2,3556.0,0.3553]
[1762808854414,0.73525719,3556.6,3556.1,0.2405]
[1762808854580,2.81190198,3556.4,3556.2,0.2405]
[1762808854789,0.59024474,3556.3,3556.2,0.2405]
[1762808856187,1.32550193,3556.3,3556.2,0.2405]
[1762808856391,0.59024474,3556.3,3556.2,0.2405]
[1762808856592,3.40215599,3556.3,3556.2,0.2405]
[1762808856792,0.59024474,3556.3,3556.2,0.2405]
[1762808857434,1.33122743,3556.3,3556.2,0.2405]
[1762808858030,4.14313868,3556.3,3556.2,0.2405]
[1762808858204,0.59024474,3556.3,3556.2,0.2405]
[1762808858550,1.57979289,3556.3,3556.2,0.2405]
[1762808858719,0.59024474,3556.3,3556.2,0.2405]
[1762808858925,0.59024474,3556.3,3556.2,0.20086157]
[1762808859100,1.57981882,3556.3,3556.2,0.20086157]
[1762808859307,2.0652053,3556.3,3556.2,0.20086157]
[1762808859622,1.58159287,3556.3,3556.2,0.40166157]
[1762808859824,1.58159287,3556.3,3556.2,3.62692599]
[1762808860043,0.59024474,3556.3,3556.2,3.21365189]
[1762808860451,0.59024474,3556.3,3556.2,0.40166157]
[1762808860661,0.59024474,3556.3,3556.2,3.64727579]
[1762808860800,0.74506829,3557.0,3556.6,0.405504]
[1762808860996,0.74506829,3557.2,3557.1,2.81127885]
[1762808861253,1.47496056,3557.5,3557.3,2.81112079]
[1762808861554,0.7473485,3557.5,3557.4,2.81098883]
[1762808861700,0.99646467,3557.8,3557.5,2.81092769]
[1762808861895,0.74733119,3557.6,3557.5,0.2008]
[1762808862094,0.01,3557.9,3557.6,2.81088374]
[1762808862095,0.74733119,3557.7,3557.6,2.81088374]
[1762808862349,0.01,3557.9,3557.6,2.81088374]
[1762808862350,1.47496056,3557.8,3557.7,2.81080473]
[1762808862554,0.01,3557.9,3557.8,3.01152572]
[1762808862555,1.48496056,3557.9,3557.8,3.01152572]
[1762808862773,0.01,3557.9,3557.8,3.21232572]
[1762808863070,0.75030436,3558.0,3557.9,3.21615072]
[1762808863238,0.75030436,3558.2,3557.9,0.606304]
[1762808863430,1.00028608,3558.4,3558.3,2.81033077]
[1762808863431,0.75030436,3558.4,3558.3,2.81033077]
[1762808863769,0.75030436,3558.6,3558.3,0.2008]
[1762808863952,0.75030436,3558.8,3557.7,0.0861]
[1762808864128,3.56049512,3558.5,3557.8,0.405504]
[1762808864329,0.75030436,3558.5,3557.8,3.21616848]
[1762808864555,2.81012227,3558.6,3557.8,0.405504]
[1762808864556,3.56042663,3558.6,3557.8,0.405504]
[1762808864744,3.56042663,3558.6,3557.9,2.81058796]
[1762808865332,2.81012227,3558.6,3557.9,2.81062102]
[1762808865532,2.81012227,3558.6,3557.8,0.405504]
[1762808866430,2.81012227,3558.6,3557.9,2.81064672]
[1762808866631,0.75030436,3558.7,3557.7,0.0861]
[1762808866858,0.75030436,3558.6,3557.8,2.81067291]
[1762808867171,3.56049608,3558.5,3557.8,2.81071021]
[1762808867356,0.75030436,3558.5,3557.7,0.0861]
[1762808867558,2.81040022,3558.3,3557.7,0.0861]
[1762808867960,0.75030436,3558.5,3557.9,2.81059442]
[1762808868273,0.75030436,3558.5,3557.8,2.81071161]
[1762808868474,0.75030436,3558.5,3557.7,2.89688833]
[1762808868777,0.75030436,3558.5,3557.7,0.57658883]
[1762808869070,0.03567459,3557.8,3557.7,3.18659356]
[1762808869233,0.03567459,3557.8,3557.7,3.09770473]
[1762808869431,0.03567459,3557.8,3557.7,3.50320873]
[1762808869738,0.03567459,3557.8,3557.7,3.70400873]
[1762808872392,0.03567459,3557.8,3557.2,0.0861]
[1762808872854,0.59789182,3557.7,3557.2,0.0861]
[1762808873052,0.59789182,3557.6,3557.2,2.89725409]
[1762808873252,0.59803999,3557.7,3557.2,0.0861]
[1762808873487,0.59803999,3557.6,3557.5,0.2008]
[1762808873651,0.59803999,3557.7,3557.5,0.2008]
[1762808873851,0.59803999,3557.6,3557.5,0.2008]
[1762808874187,0.59803999,3557.7,3557.5,0.2008]
[1762808874389,0.59803999,3557.6,3557.5,0.2008]
[1762808874605,0.59803999,3557.8,3557.5,0.2008]
[1762808874763,0.59803999,3557.7,3557.5,0.2008]
[1762808874966,0.59803999,3557.6,3557.5,0.2008]
[1762808875173,0.59803999,3557.7,3557.5,0.2008]
[1762808875498,0.59803999,3557.6,3557.5,0.2008]
[1762808875691,0.59803999,3557.9,3557.5,0.807104]
[1762808875847,0.75030436,3558.5,3557.9,0.2008]
[1762808876048,0.59841753,3558.4,3558.2,2.81040226]
[1762808876357,4.00569644,3558.9,3558.1,2.81043379]
[1762808876358,0.59841753,3558.6,3558.1,2.81043379]
[1762808876567,0.59841753,3558.5,3558.3,0.2008]
[1762808876769,0.59841753,3558.4,3558.3,3.01113077]
[1762808876970,0.59841753,3558.8,3558.6,2.81004052]
[1762808877193,0.59841753,3558.8,3558.5,2.81010783]
[1762808877413,0.01,3558.9,3558.7,0.2008]
[1762808878614,0.01,3558.9,3558.7,3.01079789]
[1762808878920,0.01,3558.9,3558.8,0.22889935]
[1762808879692,0.01,3558.9,3558.8,3.03883528]
[1762808879902,0.01,3558.9,3558.8,0.22889935]
[1762808880102,0.01,3558.9,3558.8,3.84462101]
[1762808880299,0.01,3558.9,3558.8,4.25012501]
[1762808880684,0.01,3558.9,3558.8,4.22202566]
[1762808880917,0.01,3558.9,3558.8,1.21128973]
[1762808881223,0.01,3558.9,3558.8,0.606304]
[1762808881412,0.01,3558.9,3558.8,3.41623993]
[1762808881926,0.01,3558.9,3558.8,3.61703993]
[1762808882097,0.01,3558.9,3558.1,0.2008]
[1762808882306,0.01,3558.9,3558.2,0.405504]
[1762808882501,0.01,3558.9,3558.1,0.2008]
[1762808882502,0.01,3558.9,3558.3,0.405504]
[1762808882829,0.01,3558.9,3557.9,14.5]
[1762808882830,3.0148614,3558.9,3557.9,14.5]
[1762808883132,0.6767,3558.9,3557.6,0.56261557]
[1762808883421,0.4717,3558.8,3557.7,2.81080473]
[1762808883636,2.81009535,3558.6,3557.9,2.81057295]
[1762808883791,2.81001489,3558.7,3557.9,2.81057295]
[1762808883994,2.81020926,3558.5,3557.6,3.0116736]
[1762808884300,2.81012567,3558.6,3557.9,2.81058568]
[1762808884969,2.81032798,3558.4,3557.7,3.21625355]
[1762808885084,0.4717,3558.8,3557.7,1.02829874]
[1762808885283,2.81007474,3558.7,3558.0,2.81055812]
[1762808885524,0.4717,3558.8,3557.9,2.81059112]
[1762808885831,0.4717,3558.8,3558.0,2.81054478]
[1762808886127,2.81022961,3558.5,3557.8,2.81067894]
[1762808886346,0.4717,3558.8,3557.7,2.81080473]
[1762808886550,2.81001813,3558.7,3558.0,2.81050948]
[1762808887242,2.81024967,3558.5,3557.7,0.30136047]
[1762808887446,2.81061513,3558.0,3557.6,0.002]
[1762808887952,0.4717,3558.2,3557.6,0.002]
[1762808888163,2.81049662,3558.1,3557.6,0.002]
[1762808888458,0.4717,3558.2,3557.6,0.002]
[1762808888459,3.28218512,3558.2,3557.6,0.002]
[1762808888607,0.4717,3558.2,3557.6,0.002]
[1762808888823,3.28216042,3558.2,3557.6,0.002]
[1762808889120,0.60016222,3558.3,3557.6,0.002]
[1762808889121,0.4717,3558.6,3557.6,0.002]
[1762808889524,0.6561,3557.7,3557.6,0.002]
[1762808891065,0.4717,3558.0,3557.6,0.002]
[1762808891223,0.195,3557.9,3557.6,0.002]
[1762808891424,2.81080473,3557.7,3557.6,0.002]
[1762808891626,0.6667,3557.9,3557.6,0.002]
[1762808891847,2.81072572,3557.8,3557.6,0.002]
[1762808892124,0.6667,3557.9,3557.6,0.002]
[1762808892950,3.91822537,3557.9,3557.6,0.002]
[1762808893539,1.10757385,3557.9,3557.6,0.002]
[1762808894156,3.91826626,3557.9,3557.6,0.002]
[1762808894469,1.10757385,3557.9,3557.6,0.002]
[1762808894763,3.91824057,3557.9,3557.6,0.002]
[1762808895166,3.27190473,3557.7,3557.6,0.002]
[1762808895530,4.34455431,3557.7,3557.6,0.002]
[1762808895952,5.60426631,3557.7,3557.6,0.002]
[1762808896855,1.53374958,3557.7,3557.6,0.002]
[1762808897189,4.34455431,3557.7,3557.6,0.002]
[1762808897491,1.53374958,3557.7,3557.6,0.002]
[1762808897724,0.4611,3557.7,3557.6,0.002]
[1762808898254,0.44087385,3557.9,3557.6,0.2028]
[1762808898559,2.81033077,3558.3,3557.6,0.2028]
[1762808898781,2.81051288,3558.1,3557.6,0.2028]
[1762808898987,2.81053609,3558.1,3557.6,0.002]
[1762808899486,3.28206158,3558.3,3557.6,2.81286924]
[1762808899487,2.81044068,3558.2,3557.6,2.81286924]
[1762808899697,2.8104897,3558.1,3557.6,0.002]
[1762808899894,2.81056773,3558.0,3557.6,0.002]
[1762808900081,0.6561,3557.7,3557.6,0.002]
[1762808900808,0.195,3557.9,3557.6,0.002]
[1762808903309,0.4611,3557.7,3557.6,0.002]
[1762808903874,0.195,3557.9,3557.6,0.002]
[1762808905388,0.6806,3557.9,3557.6,0.002]
[1762808906184,0.4795,3557.7,3557.6,0.002]
[1762808906716,0.9651,3557.7,3557.6,0.002]
[1762808906916,0.9651,3557.7,3557.3,2.76305426]
[1762808907210,0.9651,3557.7,3557.1,0.0861]
[1762808907578,0.9651,3557.7,3557.1,2.89735778]
[1762808907890,0.9651,3557.7,3557.3,2.81107771]
[1762808908284,0.9651,3557.7,3557.2,2.81116304]
[1762808908485,0.9651,3557.7,3557.1,0.0861]
[1762808908486,0.4795,3557.7,3557.1,0.0861]
[1762808908714,0.195,3557.9,3557.6,2.8108695]
[1762808908879,2.81145393,3558.2,3557.1,0.0861]
[1762808908880,0.001,3558.2,3557.1,0.2869]
[1762808909071,0.4866,3558.2,3557.2,0.30983099]
[1762808909280,2.81050587,3558.1,3557.5,2.81094092]
[1762808909473,0.44086115,3558.0,3557.5,2.81094092]
[1762808909678,0.92646115,3558.0,3557.1,0.0861]
[1762808909912,3.00839134,3557.9,3557.1,0.0861]
[1762808910074,3.49399134,3557.9,3557.3,2.81109248]
[1762808910521,3.00839134,3557.9,3557.3,2.81109248]
[1762808910710,0.4856,3557.8,3557.3,2.81109248]
[1762808911016,0.4856,3557.8,3557.4,2.81103404]
[1762808911620,0.4856,3557.8,3557.3,2.8110852]
[1762808911825,2.81082022,3557.7,3557.1,0.0861]
[1762808912037,0.4795,3557.2,3556.1,0.2108]
[1762808912324,2.81127933,3557.1,3556.5,2.81169512]
[1762808912488,2.81138707,3557.0,3556.1,0.2108]
[1762808912918,0.1977,3556.9,3556.1,0.2108]
[1762808913436,2.81167164,3556.7,3556.1,0.01]
[1762808913620,0.1977,3556.9,3556.1,0.01]
[1762808913929,0.4795,3556.2,3556.1,0.01]
[1762808914227,3.29149032,3556.2,3556.1,0.01]
[1762808914428,3.77709032,3556.2,3556.1,0.01]
[1762808917402,5.03680232,3556.2,3556.1,0.01]
[1762808919447,5.03680232,3556.2,3555.1,0.01]
[1762808919448,2.81278127,3555.2,3555.1,0.01]
[1762808919596,7.90327102,3555.2,3555.1,0.01]
[1762808919797,8.38887102,3555.2,3555.1,0.01]
[1762808920103,3.89598127,3555.2,3555.1,0.01]
[1762808920406,1.0832,3555.2,3555.1,0.01]
[1762808921138,0.4795,3555.2,3555.1,0.01]
[1762808921494,0.9651,3555.2,3555.1,0.01]
[1762808923014,1.40627175,3555.2,3555.1,0.01]
[1762808923210,0.44117175,3555.2,3555.1,0.01]
[1762808924108,1.259712,3555.5,3555.1,0.3256]
[1762808924433,1.89855967,3555.7,3555.1,3.13844519]
[1762808924614,3.4512385,3555.7,3555.1,3.13844519]
[1762808924817,4.7109505,3555.7,3555.1,3.13844519]
[1762808925150,2.38415967,3555.7,3555.1,0.3256]
[1762808925331,2.38415967,3555.7,3555.1,0.01]
[1762808925499,0.4856,3555.6,3555.1,0.01]
[1762808925838,3.29809245,3555.6,3555.1,0.01]
[1762808926135,3.29809245,3555.6,3554.4,0.2008]
[1762808926136,0.405504,3555.1,3553.3,0.0861]
[1762808926362,3.49077267,3554.2,3552.2,2.8151017]
[1762808926542,1.259712,3553.7,3552.1,0.2108]
[1762808926709,3.39656451,3553.2,3552.2,2.81514919]
[1762808927138,3.88216451,3553.2,3552.3,2.81507011]
[1762808927311,3.88216451,3553.2,3552.4,2.81496205]
[1762808927510,1.0678,3553.2,3552.3,2.81504996]
[1762808927712,1.0678,3553.2,3552.1,0.2108]
[1762808928029,1.0678,3553.2,3552.5,2.81486091]
[1762808928544,1.0678,3553.2,3552.6,2.81482037]
[1762808928724,3.88216451,3553.2,3552.1,0.2108]
[1762808928926,3.88216451,3553.2,3552.1,0.01]
[1762808929129,0.5822,3553.2,3552.1,0.01]
[1762808929327,1.259712,3553.5,3552.7,2.81773855]
[1762808929528,1.259712,3553.5,3552.8,2.81467044]
[1762808929729,4.55934259,3553.7,3552.9,2.81455211]
[1762808929934,4.55934259,3553.7,3552.7,2.81773975]
[1762808929935,4.07384125,3553.5,3552.7,2.81774743]
[1762808930160,1.259712,3553.5,3552.7,2.81774743]
[1762808930367,0.4856,3553.4,3552.7,2.81774743]
[1762808930760,1.259712,3554.1,3552.7,0.003]
[1762808931071,1.259712,3554.1,3552.9,2.81452825]
[1762808931072,4.07377852,3553.6,3552.9,2.81452825]
[1762808931382,0.1977,3554.2,3553.2,0.0961]
[1762808931564,2.81378191,3554.0,3553.2,0.0961]
[1762808931742,3.4968973,3554.2,3553.3,2.81427099]
[1762808931942,2.81380212,3554.0,3553.3,2.81427099]
[1762808932159,2.81382308,3553.9,3553.2,2.91044182]
[1762808932360,1.259712,3554.0,3553.3,2.81427181]
[1762808932564,2.81381733,3553.9,3553.2,2.91046102]
[1762808932874,0.1977,3554.2,3553.2,0.0961]
[1762808933055,2.81397545,3553.7,3553.2,0.0961]
[1762808933251,0.1977,3554.2,3553.2,0.0961]
[1762808933252,2.81370593,3554.1,3553.2,0.0961]
[1762808933453,0.1977,3554.2,3553.2,0.0961]
[1762808933672,0.6833,3554.2,3553.2,0.0961]
[1762808933846,2.8138604,3553.9,3553.2,2.9104436]
[1762808934048,2.81394959,3553.8,3553.2,0.0961]
[1762808934356,2.8138298,3553.9,3553.2,2.91044987]
[1762808934552,2.813731,3554.0,3553.2,2.91044987]
[1762808934790,1.745312,3554.1,3553.2,2.91043835]
[1762808934949,2.81383972,3553.9,3553.2,2.91043835]
[1762808935153,0.482,3554.0,3553.2,2.91043835]
[1762808935345,0.482,3554.0,3553.2,0.0961]
[1762808935545,2.81381018,3553.9,3553.2,0.0961]
[1762808935845,0.4881,3553.3,3553.1,0.01]
[1762808936040,0.02814303,3553.8,3553.1,0.01]
[1762808936041,2.81401583,3553.7,3553.1,0.01]
[1762808936264,0.44142355,3553.8,3553.1,0.01]
[1762808936265,2.81410543,3553.6,3553.1,0.01]
[1762808936463,0.90672355,3553.8,3553.1,0.01]
[1762808936686,2.81413029,3553.5,3553.1,0.01]
[1762808936890,2.81421285,3553.4,3553.1,0.01]
[1762808937092,2.81417891,3553.5,3553.1,0.01]
[1762808937544,2.81421464,3553.4,3553.1,0.01]
[1762808937769,0.4881,3553.2,3553.1,0.01]
[1762808938365,3.30246451,3553.2,3553.1,0.01]
[1762808938596,3.76776451,3553.2,3553.1,0.01]
[1762808939864,3.76776451,3553.2,3551.1,0.1248]
[1762808939865,2.81489428,3552.6,3551.1,0.1248]
[1762808940200,2.81587024,3551.3,3551.1,0.01]
[1762808940371,0.1979,3552.0,3551.1,0.01]
[1762808940565,0.1979,3551.8,3551.1,0.01]
[1762808940905,2.81571537,3551.5,3551.1,0.1278]
[1762808941077,0.1979,3551.8,3551.1,0.1278]
[1762808941474,0.4881,3551.2,3550.1,0.01]
[1762808941627,0.59531982,3551.7,3550.1,0.4941]
[1762808941826,0.59531982,3551.7,3550.4,2.81656181]
[1762808941827,2.81559542,3551.7,3550.4,2.81656181]
[1762808942117,3.47868299,3551.8,3550.5,3.39903903]
[1762808942320,0.6632,3551.8,3550.5,0.58255618]
[1762808942521,0.49344303,3551.7,3550.1,0.1932]
[1762808942694,2.81592301,3551.3,3550.1,0.4941]
[1762808942888,2.81595659,3551.2,3550.2,2.81668367]
[1762808943085,2.8163441,3550.8,3550.2,0.61276724]
[1762808943281,2.8163441,3550.8,3550.1,0.4941]
[1762808943282,0.02814303,3551.5,3550.1,0.4941]
[1762808943483,2.81625212,3550.9,3550.1,0.4941]
[1762808943688,0.4653,3551.4,3550.3,2.8166623]
[1762808944016,2.81595272,3551.2,3550.3,2.8166623]
[1762808944194,2.81595157,3551.2,3550.3,2.8166623]
[1762808944393,2.81600876,3551.2,3550.1,0.4941]
[1762808944593,0.4653,3551.4,3550.1,0.4941]
[1762808944798,2.81612161,3551.0,3550.2,2.81666467]
[1762808945018,2.81587024,3551.3,3550.3,2.81666338]
[1762808945177,0.1979,3551.8,3550.4,0.02816584]
[1762808945382,0.1979,3552.4,3550.5,0.3009]
[1762808945624,0.1979,3552.4,3550.6,0.405504]
[1762808945918,0.1979,3552.4,3551.5,2.81570126]
[1762808946127,0.1057,3552.8,3550.8,0.405504]
[1762808946295,0.02814303,3552.7,3550.9,0.3009]
[1762808946620,2.81520721,3552.2,3550.9,0.3009]
[1762808946779,2.81522456,3552.2,3550.9,0.3009]
[1762808946983,0.4653,3552.7,3551.3,2.81586102]
[1762808946984,2.81524137,3552.1,3551.3,2.81586102]
[1762808947184,0.4653,3552.7,3551.4,3.09736068]
[1762808947385,0.49344303,3552.7,3551.4,0.2815861]
[1762808947616,2.81508772,3552.3,3551.0,0.3009]
[1762808947947,2.81501293,3552.4,3551.0,0.3009]
[1762808948103,2.81508134,3552.3,3551.0,0.3009]
[1762808948432,0.4653,3552.6,3551.1,0.43768137]
[1762808948589,2.81514515,3552.3,3551.5,2.81571165]
[1762808948790,2.81517341,3552.2,3551.5,2.81571165]
[1762808949033,2.81491907,3552.5,3551.5,2.81571165]
[1762808949034,2.81513489,3552.3,3551.5,2.81568113]
[1762808949238,0.4653,3552.6,3551.5,2.81568113]
[1762808949392,2.8151706,3552.2,3551.5,2.81568113]
[1762808949599,0.44157665,3552.4,3551.5,0.56315379]
[1762808950043,2.8151752,3552.2,3551.5,2.81569458]
[1762808950247,2.81523823,3552.1,3551.4,2.81577324]
[1762808950555,0.4653,3552.3,3550.4,0.3009]
[1762808950703,2.81523605,3552.1,3550.4,0.3009]
[1762808950902,2.81597507,3551.2,3550.4,3.11745615]
[1762808951146,2.81603954,3551.1,3550.5,0.31174562]
[1762808951303,0.1979,3551.1,3550.3,2.81663007]
[1762808951509,0.1979,3551.1,3550.5,2.81648265]
[1762808951842,0.1979,3551.1,3550.2,2.81672575]
[1762808952198,3.01399427,3551.1,3550.4,2.81655927]
[1762808952794,0.1979,3551.4,3550.6,2.81636089]
[1762808953000,0.1979,3551.4,3550.4,3.11748183]
[1762808953224,0.1979,3551.4,3550.4,2.81652652]
[1762808953529,0.1979,3551.4,3550.4,3.42931516]
[1762808953530,2.81587024,3551.3,3550.4,3.42931516]
[1762808953731,3.01369577,3551.4,3550.5,2.81648963]
[1762808953912,2.81603718,3551.1,3550.5,2.81648963]
[1762808954233,2.81592072,3551.3,3550.4,0.61273692]
[1762808954438,2.81596163,3551.2,3550.5,2.81650471]
[1762808954598,2.81608793,3551.1,3550.4,0.61273692]
[1762808954937,2.81596731,3551.2,3550.5,2.81649269]
[1762808955294,3.55855747,3551.8,3550.6,0.3009]
[1762808955295,0.1979,3551.7,3550.6,0.3009]
[1762808955497,0.6632,3551.7,3550.1,0.1932]
[1762808955724,0.6632,3551.7,3550.1,0.4941]
[1762808955910,0.4653,3551.6,3550.1,0.4941]
[1762808956128,2.81594205,3551.3,3550.5,2.81644839]
[1762808956309,2.81608158,3551.1,3550.3,2.8166612]
[1762808956633,2.81608158,3551.1,3550.4,2.8165298]
[1762808957334,0.02814303,3551.2,3550.1,0.1932]
[1762808957636,0.74305108,3551.4,3550.3,2.81663992]
[1762808957835,2.81595202,3551.2,3550.4,2.81658383]
[1762808958033,0.59653033,3551.1,3550.4,2.81658383]
[1762808958333,0.59653033,3551.1,3550.1,0.4941]
[1762808958334,2.81612523,3551.0,3550.1,0.4941]
[1762808958533,1.20835108,3551.4,3550.1,0.82550545]
[1762808958734,1.06173403,3551.3,3550.1,0.4941]
[1762808959037,0.59643403,3551.2,3550.4,2.81656189]
[1762808959210,2.8161245,3551.0,3550.1,0.4941]
[1762808959538,0.4653,3551.3,3550.1,3.31090635]
[1762808959735,0.4653,3551.3,3550.1,0.4941]
[1762808959941,0.44169883,3551.1,3550.4,0.002]
[1762808960235,2.81625933,3550.9,3550.4,0.002]
[1762808960451,2.81611127,3551.0,3550.4,2.81857682]
[1762808960653,2.81610813,3551.0,3550.4,0.002]
[1762808960957,2.81631815,3550.8,3550.4,0.002]
[1762808961317,3.01411893,3550.9,3550.4,0.002]
[1762808961718,2.81626675,3550.8,3550.4,0.002]
[1762808961915,3.01411676,3550.9,3550.4,0.002]
[1762808962118,0.1979,3550.9,3550.4,0.002]
[1762808962553,2.81616731,3551.0,3550.4,2.81855784]
[1762808962852,0.44169883,3551.1,3550.4,0.002]
[1762808963156,0.44169883,3551.1,3550.5,2.81644254]
[1762808963451,0.74305108,3551.6,3551.0,0.3009]
[1762808963652,0.59678867,3551.5,3551.1,0.3009]
[1762808963816,0.59678867,3551.6,3551.1,0.3009]
[1762808964020,0.44167572,3551.7,3551.1,0.3009]
[1762808964353,0.44167572,3551.7,3551.2,2.81593979]
[1762808964755,1.03855355,3551.7,3550.8,0.3009]
[1762808965055,1.03855355,3551.7,3550.4,0.002]
[1762808965056,2.81609674,3551.1,3550.4,0.002]
[1762808965221,2.81581105,3551.4,3550.8,2.81620535]
[1762808965551,2.81579749,3551.4,3551.0,0.3009]
[1762808965751,0.4625,3551.8,3551.0,0.3009]
[1762808965950,0.59755346,3551.7,3551.0,0.3009]
[1762808966155,2.81604652,3551.1,3550.5,0.28186546]
[1762808966324,2.81604652,3551.1,3550.5,3.09836256]
[1762808966525,3.55864005,3551.7,3551.0,0.3009]
[1762808966720,2.81601466,3551.2,3550.4,0.002]
[1762808966956,2.81587024,3551.3,3550.4,0.002]
[1762808967158,2.81601175,3551.2,3550.5,2.81644627]
[1762808967723,2.81604412,3551.1,3550.5,2.81644627]
[1762808968153,3.55861615,3551.7,3550.4,0.002]
[1762808968154,0.74305108,3551.7,3550.4,0.002]
[1762808968353,3.55884203,3551.4,3550.4,0.002]
[1762808968590,3.55884203,3551.4,3550.1,1e-08]
[1762808968591,3.31024271,3550.2,3550.1,1e-08]
[1762808968795,3.90928035,3550.2,3550.1,1e-08]
[1762808968992,5.36969214,3550.2,3550.1,1e-08]
[1762808969165,4.16442796,3550.2,3550.1,1e-08]
[1762808969487,0.59903764,3550.2,3550.1,1e-08]
[1762808969688,0.59902651,3550.4,3550.1,1e-08]
[1762808969996,0.59902651,3550.3,3550.1,0.18320001]
[1762808970208,0.59902651,3550.4,3550.1,0.18320001]
[1762808970552,0.59902651,3550.7,3550.1,0.18320001]
[1762808970758,2.81657465,3550.5,3550.1,0.18320001]
[1762808970971,0.59902651,3550.4,3550.1,0.18320001]
[1762808971159,3.41561498,3550.4,3550.1,0.18320001]
[1762808971474,2.81674271,3550.2,3550.1,1e-08]
[1762808971689,2.8167152,3550.3,3550.1,1e-08]
[1762808971902,0.4625,3550.7,3550.1,1e-08]
[1762808972402,2.81674271,3550.2,3550.1,1e-08]
[1762808972911,2.81665806,3550.4,3550.1,1e-08]
[1762808973368,2.81668024,3550.3,3550.1,1e-08]
[1762808973567,2.8166715,3550.3,3550.1,1e-08]
[1762808973773,0.4625,3550.7,3550.1,1e-08]
[1762808974108,2.81674271,3550.2,3550.1,1e-08]
[1762808974659,2.81672818,3550.3,3550.1,1e-08]
[1762808975073,2.81674271,3550.2,3550.1,1e-08]
[1762808975272,3.31024271,3550.2,3550.1,1e-08]
[1762808975491,3.77274271,3550.2,3550.1,1e-08]
[1762808975691,3.31024271,3550.2,3550.1,1e-08]
[1762808975892,3.5649811,3550.8,3550.1,0.48410001]
[1762808975893,0.74864761,3550.8,3550.1,0.48410001]
[1762808976109,0.5985328,3550.7,3550.3,0.3009]
[1762808976295,3.41492734,3550.7,3550.3,0.3009]
[1762808976496,0.44180321,3550.8,3550.3,0.3009]
[1762808976688,0.59864645,3551.0,3550.7,0.3009]
[1762808976887,2.81605446,3551.1,3550.7,0.3009]
[1762808977299,2.81600497,3551.2,3550.8,0.02816266]
[1762808977500,0.44174131,3551.4,3550.8,0.02816266]
[1762808977704,2.81600184,3551.2,3550.5,2.81644083]
[1762808978025,2.81565025,3551.6,3551.1,0.3009]
[1762808978193,0.1979,3551.9,3551.1,0.3009]
[1762808978394,2.81559718,3551.7,3551.1,0.3009]
[1762808978609,0.59914451,3551.6,3551.1,0.3009]
[1762808978814,2.8154909,3551.8,3551.1,3.1169271]
[1762808979012,0.63956519,3551.9,3551.1,0.61259986]
[1762808979343,0.1979,3551.9,3551.1,0.3009]
[1762808979627,3.6125084,3551.9,3551.1,0.3009]
[1762808979827,2.81560995,3551.7,3551.1,0.3009]
[1762808980035,0.4625,3552.1,3551.1,0.3009]
[1762808980198,0.59946969,3552.2,3551.6,0.3009]
[1762808980381,2.81554554,3551.8,3551.6,0.3009]
[1762808980578,0.74864761,3552.6,3551.6,0.3009]
[1762808980797,0.59948586,3552.5,3551.7,0.3009]
[1762808981023,1.21114761,3552.7,3551.3,2.81586072]
[1762808981024,0.59948586,3552.6,3551.3,2.81586072]
[1762808981182,2.81535878,3552.0,3551.4,0.5631882]
[1762808981381,0.74864761,3552.7,3550.6,1.560612]
[1762808981615,0.1057,3552.8,3550.2,7.08980623]
[1762808981616,2.81524847,3552.1,3551.9,0.3009]
[1762808981920,2.8151664,3552.2,3551.9,0.3009]
[1762808982287,0.4625,3552.7,3551.9,0.3009]
[1762808982288,2.81523808,3552.1,3551.9,0.3009]
[1762808982480,2.815181,3552.2,3551.5,2.81570029]
[1762808982689,2.81508695,3552.3,3551.6,3.40884314]
[1762808982913,2.81508695,3552.3,3551.6,3.40885139]
[1762808982914,2.81508781,3552.3,3551.6,3.40885139]
[1762808983428,2.81508781,3552.3,3551.6,3.40886974]
[1762808983429,2.81514668,3552.3,3551.6,3.40886974]
[1762808983619,2.81517884,3552.2,3551.6,3.40886974]
[1762808983950,0.1057,3552.8,3551.7,0.67187697]
[1762808984095,0.1057,3552.8,3552.1,0.3009]
[1762808984437,2.81512746,3552.3,3551.7,0.3009]
[1762808984798,2.81515768,3552.2,3551.7,0.3009]
[1762808985235,2.81510534,3552.3,3551.7,3.11643714]
[1762808985747,2.81518984,3552.2,3551.7,0.3009]
[1762808986393,2.81501553,3552.4,3551.7,3.11640881]
[1762808986821,2.81508726,3552.3,3551.7,3.11640881]
[1762808987036,2.81515972,3552.2,3551.7,0.3009]
[1762808987231,2.81483614,3552.7,3551.7,3.1164498]
[1762808987433,2.81513869,3552.3,3551.7,0.3009]
[1762808988012,2.81513869,3552.3,3551.7,3.11642338]
[1762808988411,2.81508174,3552.3,3551.7,3.11640017]
[1762808988933,2.81518561,3552.2,3551.7,0.3009]
[1762808989635,2.81512269,3552.3,3552.1,0.3009]
[1762808990645,2.8150328,3552.4,3552.1,0.3009]
[1762808990840,0.5682,3552.8,3552.1,0.3009]
[1762808991258,2.8150553,3552.4,3552.1,0.3009]
[1762808992316,2.81508336,3552.3,3552.1,0.3009]
[1762808993059,2.81503141,3552.4,3552.1,0.3009]
[1762808993426,2.81492374,3552.5,3551.8,0.3009]
[1762808993759,2.8149002,3552.6,3551.9,2.8153429]
[1762808993923,2.8149002,3552.6,3552.0,0.59317754]
[1762808994124,2.8149002,3552.6,3552.0,3.4084883]
[1762808994856,2.81505023,3552.4,3552.0,0.59317754]
[1762808995018,2.81505023,3552.4,3551.8,3.11632446]
[1762808995460,2.81494191,3552.5,3551.9,2.81537295]
[1762808996069,0.01,3552.9,3552.8,2.81468137]
[1762808996382,0.01,3552.9,3552.8,0.3009]
[1762808996924,0.01,3552.9,3552.8,3.11558137]